bitfinex-derivatives/quotes_ETHF0:USTF0_20250103
["timestamp","ask_amount","ask_price","bid_price","bid_amount"]
[1735888356192,0.29092,3439.9,3439.7,1.44193]
[1735888356682,0.29092,3440.0,3439.7,1.44193]
[1735888356889,0.29092,3440.0,3439.8,0.29093]
[1735888357285,0.29092,3440.0,3439.7,1.44193]
[1735888357485,0.29093,3439.8,3439.7,1.151]
[1735888357885,0.29093,3439.9,3439.7,1.151]
[1735888358093,0.29093,3439.9,3439.7,1.44193]
[1735888358888,5.51877774,3440.1,3439.6,1.151]
[1735888359088,3.49874,3439.7,3439.6,1.151]
[1735888361691,0.29097,3439.4,3439.2,1.44198]
[1735888362995,0.29095,3439.6,3439.3,0.29096]
[1735888365099,3.2078,3439.7,3439.2,1.151]
[1735888365303,0.29095,3439.6,3439.3,0.29096]
[1735888365503,0.29095,3439.5,3439.3,0.29096]
[1735888366002,0.29095,3439.6,3439.3,0.29097]
[1735888366197,0.29095,3439.6,3439.4,0.29096]
[1735888369305,0.29094,3439.6,3439.2,1.151]
[1735888369504,0.29094,3439.6,3439.4,0.29096]
[1735888370305,3.2078,3439.5,3439.4,0.29096]
[1735888370499,3.2078,3439.5,3439.2,1.151]
[1735888370698,3.2078,3439.5,3439.4,0.29096]
[1735888382810,3.49875,3439.5,3439.3,0.29097]
[1735888383013,3.2078,3439.5,3439.4,0.29096]
[1735888384107,3.2078,3439.5,3439.3,0.29097]
[1735888384108,3.49875,3439.5,3439.3,0.29097]
[1735888384413,0.29096,3439.4,3439.3,0.29097]
[1735888384607,3.49876,3439.5,3439.3,0.29097]
[1735888385012,0.29097,3439.4,3439.2,0.29098]
[1735888385316,3.49876,3439.5,3439.2,0.29098]
[1735888385513,40.8,3439.4,3439.1,4.56706534]
[1735888385704,40.8,3439.4,3439.3,0.29097]
[1735888385910,3.49876,3439.5,3439.3,0.29097]
[1735888386311,3.49876,3439.5,3439.2,0.29097]
[1735888386609,44.29876,3439.5,3439.3,0.29097]
[1735888387010,3.49876,3439.5,3439.3,0.29097]
[1735888388112,3.2078,3439.5,3439.3,0.29097]
[1735888388863,3.2078,3439.5,3439.2,4.56706534]
[1735888389010,3.2078,3439.5,3439.4,0.29096]
[1735888389409,3.2078,3439.5,3439.2,4.56706534]
[1735888389710,3.2078,3439.5,3439.3,4.85803534]
[1735888390119,0.29095,3439.6,3439.3,4.85803534]
[1735888390318,3.2078,3439.5,3439.3,4.85803534]
[1735888391018,3.2078,3439.5,3439.4,4.75623927]
[1735888391216,3.49875,3439.5,3439.4,4.75623927]
[1735888391922,3.2078,3439.5,3439.4,4.75623927]
[1735888392114,3.2078,3439.5,3439.4,5.04719927]
[1735888392430,3.49875,3439.5,3439.4,4.75623927]
[1735888392722,3.49875,3439.5,3439.4,4.57745282]
[1735888393717,0.29096,3439.4,3439.3,6.85059801]
[1735888394215,3.49876,3439.4,3439.3,6.85059801]
[1735888395020,3.49876,3439.4,3439.3,11.60706512]
[1735888398623,3.2078,3439.4,3439.3,11.89803512]
[1735888400222,3.40921937,3439.7,3439.3,11.60706512]
[1735888400727,6.90794937,3439.8,3439.6,0.29094]
[1735888401023,6.90794937,3439.8,3439.3,13.81149764]
[1735888401024,0.29095,3439.6,3439.4,0.29096]
[1735888401219,0.29094,3439.7,3439.4,0.29096]
[1735888401622,6.61701937,3439.8,3439.4,0.29096]
[1735888401813,6.61701937,3439.8,3439.3,13.81149764]
[1735888402022,3.2078,3439.4,3439.2,9.05503053]
[1735888403227,3.2078,3439.4,3439.3,11.91852966]
[1735888404329,3.2078,3439.4,3439.3,14.10437011]
[1735888404828,3.49876,3439.4,3439.3,13.81340011]
[1735888406626,3.49876,3439.4,3439.3,4.75836958]
[1735888407631,0.29096,3439.4,3439.3,4.75836958]
[1735888407834,3.49876,3439.4,3439.3,4.75836958]
[1735888409336,3.2078,3439.4,3439.3,4.75836958]
[1735888409528,3.2078,3439.4,3439.3,5.04933958]
[1735888409836,3.49876,3439.4,3439.3,5.04933958]
[1735888410835,3.49876,3439.4,3439.3,14.10437011]
[1735888411332,3.2078,3439.4,3439.3,14.10437011]
[1735888411527,3.2078,3439.4,3439.3,13.81340011]
[1735888411734,3.2078,3439.4,3439.3,14.10437011]
[1735888412334,3.2078,3439.4,3439.3,5.04933958]
[1735888412933,3.49876,3439.4,3439.3,4.75836958]
[1735888413636,3.2078,3439.4,3439.3,5.04933958]
[1735888414937,0.29096,3439.5,3439.3,5.04933958]
[1735888415139,3.2078,3439.5,3439.4,0.29096]
[1735888416343,3.2078,3439.5,3439.4,23.62362862]
[1735888416543,3.2078,3439.5,3439.4,23.33266862]
[1735888416738,3.2078,3439.5,3439.4,23.62362862]
[1735888417742,3.49875,3439.5,3439.4,23.33266862]
[1735888417938,3.49875,3439.5,3439.4,13.81340011]
[1735888419035,4.51421364,3439.5,3439.4,13.81340011]
[1735888419645,3.49875,3439.5,3439.4,13.81340011]
[1735888419838,4.51421364,3439.5,3439.4,13.81340011]
[1735888420842,4.51421364,3439.5,3439.4,4.75836958]
[1735888422241,6.90796937,3439.5,3439.4,11.62966358]
[1735888423152,6.90796937,3439.5,3439.4,6.871294]
[1735888423845,7.29291299,3439.5,3439.4,4.58077373]
[1735888424148,7.58386299,3439.5,3439.4,4.58077373]
[1735888424942,7.58386299,3439.5,3439.3,6.871294]
[1735888424943,7.29291299,3439.5,3439.3,6.871294]
[1735888425144,0.29096,3439.4,3439.3,6.871294]
[1735888426055,0.29096,3439.4,3439.3,4.76010737]
[1735888426648,3.44707963,3439.5,3439.3,5.05107737]
[1735888426846,3.73803963,3439.5,3439.3,5.05107737]
[1735888427145,3.44707963,3439.5,3439.3,4.76010737]
[1735888427447,3.44707963,3439.5,3439.4,5.05106737]
[1735888428048,3.73802963,3439.5,3439.4,5.05106737]
[1735888428350,3.73802963,3439.5,3439.4,4.76010737]
[1735888428946,3.73802963,3439.5,3439.4,13.8151379]
[1735888430551,7.147249,3439.5,3439.4,11.63202457]
[1735888432148,3.73802963,3439.5,3439.4,11.63202457]
[1735888436054,7.147249,3439.5,3439.4,11.63202457]
[1735888438358,7.58385912,3439.5,3439.4,11.63202457]
[1735888439362,7.147249,3439.5,3439.4,11.63202457]
[1735888439561,6.90796937,3439.5,3439.4,11.63202457]
[1735888442663,47.70796937,3439.5,3439.4,11.63202457]
[1735888444369,48.72363604,3439.5,3439.4,11.63202457]
[1735888445467,0.291,3439.0,3438.9,2.15566667]
[1735888446572,0.291,3439.0,3438.9,1.14]
[1735888449476,0.291,3439.0,3438.9,26.87372183]
[1735888449769,2.2752788,3439.3,3438.9,26.87372183]
[1735888450072,2.5662488,3439.3,3439.2,1.01566667]
[1735888450370,0.29097,3439.3,3439.2,1.01566667]
[1735888451368,0.29097,3439.3,3439.2,15.29628138]
[1735888459373,0.29097,3439.3,3439.2,14.28061471]
[1735888459575,0.29097,3439.3,3439.2,15.29628138]
[1735888465379,0.29097,3439.3,3439.2,14.28061471]
[1735888465578,0.29097,3439.3,3439.2,15.29628138]
[1735888466577,0.29097,3439.3,3439.2,14.28061471]
[1735888472779,0.29097,3439.3,3439.2,15.29628138]
[1735888473979,0.29097,3439.3,3439.2,26.74876357]
[1735888474183,3.2078,3439.4,3439.2,26.74876357]
[1735888474383,3.49877,3439.4,3439.2,27.03973357]
[1735888474578,3.49877,3439.4,3439.3,0.29097]
[1735888475083,3.49877,3439.4,3439.3,14.57158471]
[1735888476586,3.2078,3439.4,3439.3,14.57158471]
[1735888479089,3.49876,3439.4,3439.3,14.57158471]
[1735888486202,3.2078,3439.4,3439.3,14.57158471]
[1735888488199,3.49876,3439.4,3439.3,14.57158471]
[1735888491299,3.2078,3439.4,3439.3,14.57158471]
[1735888492504,3.2078,3439.4,3439.3,26.0240669]
[1735888493000,3.49876,3439.4,3439.3,26.0240669]
[1735888493899,3.2078,3439.4,3439.3,26.0240669]
[1735888494102,3.2078,3439.4,3439.3,14.57158471]
[1735888495200,3.2078,3439.4,3439.3,26.0240669]
[1735888495496,3.49876,3439.4,3439.3,26.0240669]
[1735888497399,3.49876,3439.4,3439.3,25.7330969]
[1735888497599,3.2078,3439.4,3439.3,26.0240669]
[1735888499604,2.5662388,3439.5,3439.3,26.0240669]
[1735888500502,2.5662388,3439.5,3439.4,1.01566667]
[1735888501108,2.5662388,3439.5,3439.4,15.29628138]
[1735888502709,2.5662388,3439.5,3439.4,24.46121201]
[1735888502905,2.5662388,3439.5,3439.4,23.44554534]
[1735888504011,2.5662388,3439.5,3439.4,23.73650534]
[1735888504208,2.5662388,3439.5,3439.4,24.75217201]
[1735888505308,2.5662388,3439.5,3439.4,24.46121201]
[1735888505709,2.5662388,3439.5,3439.4,24.75217201]
[1735888505904,2.2752788,3439.5,3439.4,24.75217201]
[1735888506309,2.2752788,3439.5,3439.4,25.76783868]
[1735888506511,1.25407161,3439.5,3439.4,25.76783868]
[1735888506712,3.41291821,3439.7,3439.6,0.29094]
[1735888506915,3.41291821,3439.7,3439.6,5.53007334]
[1735888507113,3.41291821,3439.7,3439.6,6.77873821]
[1735888507316,3.41291821,3439.7,3439.6,5.53007334]
[1735888507914,3.70376821,3440.8,3439.6,34.74467027]
[1735888508115,3.70376821,3440.8,3440.7,1.01566667]
[1735888508512,3.41291821,3440.8,3440.7,1.01566667]
[1735888508717,3.41291821,3440.8,3440.7,1.30651667]
[1735888509816,3.2078,3440.9,3440.8,0.29084]
[1735888511014,3.2078,3440.9,3440.7,15.21028497]
[1735888511215,3.2078,3440.9,3440.8,11.60902516]
[1735888511723,3.2078,3440.9,3440.8,11.89986516]
[1735888512522,3.2078,3440.9,3440.8,5.0510449]
[1735888513828,3.2078,3440.9,3440.8,4.85298784]
[1735888514125,4.51426667,3441.3,3441.0,0.29082]
[1735888516122,4.22346667,3441.3,3440.9,5.57781451]
[1735888516324,4.51427667,3441.3,3441.0,0.29082]
[1735888516523,4.22346667,3441.3,3441.1,0.29081]
[1735888516822,4.51427667,3441.3,3441.1,1.133]
[1735888517413,4.22346667,3441.3,3441.1,1.133]
[1735888517620,4.22346667,3441.3,3441.1,1.42381]
[1735888518122,4.51427667,3441.3,3441.1,1.42381]
[1735888519424,0.29081,3441.2,3441.1,1.133]
[1735888519722,4.51426667,3441.3,3441.1,1.42382]
[1735888520716,0.29081,3441.2,3441.1,1.133]
[1735888521123,4.22346667,3441.3,3441.1,1.133]
[1735888521325,0.29081,3441.2,3441.1,1.133]
[1735888521519,4.51427667,3441.3,3441.1,1.42381]
[1735888521927,4.22346667,3441.3,3441.2,0.29081]
[1735888522228,3.49857,3441.7,3441.4,0.29079]
[1735888522428,1.01566667,3441.6,3441.4,0.29079]
[1735888522622,1.30644667,3441.6,3440.6,4.56214784]
[1735888522825,3.49861,3441.3,3441.1,0.29081]
[1735888523016,1.01566667,3441.1,3441.0,0.29082]
[1735888524627,4.51427667,3441.3,3440.9,1.01566667]
[1735888524826,4.51427667,3441.3,3441.1,0.29081]
[1735888527630,4.22346667,3441.3,3441.1,0.29081]
[1735888527828,4.51427667,3441.3,3441.1,0.29081]
[1735888529132,4.22346667,3441.3,3441.1,0.29081]
[1735888529430,4.22346667,3441.3,3441.2,0.29081]
[1735888532334,3.2078,3441.3,3441.2,0.29081]
[1735888533433,1.01566667,3441.5,3441.1,1.01566667]
[1735888533637,1.01566667,3441.5,3441.4,0.29079]
[1735888534830,1.01566667,3441.5,3440.7,6.42127784]
[1735888534831,0.29081,3441.3,3441.1,1.42281]
[1735888535131,1.01566667,3441.2,3441.1,1.42281]
[1735888535535,1.30647667,3441.2,3441.1,1.132]
[1735888535930,1.01566667,3441.2,3441.1,1.132]
[1735888536134,1.30647667,3441.2,3441.1,1.132]
[1735888536427,1.01566667,3441.2,3441.1,1.132]
[1735888536626,1.01566667,3441.2,3440.9,1.01566667]
[1735888536831,0.29084,3440.9,3440.8,1.132]
[1735888537029,3.49864,3440.9,3440.8,1.132]
[1735888538138,3.2078,3440.9,3440.7,4.56214784]
[1735888538335,1.30650667,3440.8,3440.7,4.56214784]
[1735888538736,0.29086,3440.7,3440.5,2.43853667]
[1735888538934,1.30651667,3440.8,3440.6,0.29086]
[1735888539243,0.29082,3441.1,3440.8,0.29084]
[1735888539537,3.2078,3441.0,3440.8,0.29084]
[1735888539928,3.49863,3441.0,3440.8,0.29084]
[1735888540334,3.2078,3441.0,3440.9,0.29083]
[1735888540739,0.29084,3440.9,3440.7,0.29085]
[1735888541040,0.29084,3440.9,3440.6,1.30652667]
[1735888541240,0.29084,3440.8,3440.6,1.30652667]
[1735888541840,1.01566667,3440.9,3440.6,1.01566667]
[1735888542137,1.01566667,3440.9,3440.5,5.98500784]
[1735888542339,0.29085,3440.8,3440.5,5.98500784]
[1735888542534,0.29084,3440.8,3440.5,5.98500784]
[1735888542738,0.29085,3440.7,3440.5,5.98500784]
[1735888542937,0.29085,3440.7,3440.5,1.42286]
[1735888543140,0.29085,3440.8,3440.5,1.42286]
[1735888544348,1.01566667,3440.9,3440.5,5.69414784]
[1735888544642,0.29085,3440.7,3440.5,5.98501784]
[1735888545438,0.29084,3440.8,3440.6,0.29086]
[1735888545940,0.29085,3440.8,3440.6,1.30652667]
[1735888546341,1.01566667,3440.9,3440.6,1.30652667]
[1735888546342,1.30650667,3440.9,3440.6,1.30652667]
[1735888546539,3.2078,3441.0,3440.8,1.01566667]
[1735888546738,3.2078,3441.0,3440.9,0.29083]
[1735888547848,3.4986,3441.4,3441.2,0.29081]
[1735888548141,3.2078,3441.4,3441.2,0.29081]
[1735888548547,3.4986,3441.4,3441.1,0.29081]
[1735888549249,3.2078,3441.4,3441.3,0.2908]
[1735888551149,3.2078,3441.4,3441.3,4.85294784]
[1735888551350,3.49859,3441.4,3441.3,4.56214784]
[1735888551654,3.49859,3441.4,3441.3,3.15934784]
[1735888552651,3.49859,3441.4,3441.3,5.05483776]
[1735888554044,3.49859,3441.4,3441.3,11.90365802]
[1735888554641,3.49859,3441.4,3441.3,12.19445802]
[1735888555045,3.49859,3441.4,3441.3,5.05483776]
[1735888555255,3.49859,3441.4,3441.3,5.34563776]
[1735888555755,3.2078,3441.4,3441.3,5.34563776]
[1735888559758,3.2078,3441.4,3441.3,14.48920116]
[1735888560954,3.49859,3441.4,3441.3,14.48920116]
[1735888561155,3.2078,3441.4,3441.3,24.5353033]
[1735888562857,3.2078,3441.4,3441.3,15.3917399]
[1735888565455,3.49855,3441.9,3441.4,0.29079]
[1735888565756,3.49855,3441.9,3441.6,0.29077]
[1735888566461,3.2078,3441.9,3441.3,15.1009399]
[1735888566755,0.29076,3441.8,3441.5,0.29078]
[1735888566964,0.29079,3441.4,3441.3,15.1009399]
[1735888567354,3.2078,3441.5,3441.1,1.132]
[1735888567555,0.29081,3441.3,3441.1,1.42282]
[1735888567757,0.29081,3441.2,3441.1,1.132]
[1735888567957,0.29082,3441.1,3441.0,13.74372855]
[1735888568166,3.49862,3441.1,3441.0,13.74372855]
[1735888568568,3.2078,3441.1,3440.7,14.87572855]
[1735888568861,0.29083,3440.9,3440.7,15.16657855]
[1735888569057,3.2078,3441.1,3440.7,14.87572855]
[1735888569257,3.49862,3441.1,3440.8,0.29084]
[1735888569464,0.29083,3441.0,3440.7,15.16657855]
[1735888569658,3.2078,3441.1,3440.7,14.87572855]
[1735888569860,3.2078,3441.1,3440.9,0.29083]
[1735888570266,3.2078,3441.1,3440.7,14.87572855]
[1735888570462,3.2078,3441.1,3440.9,0.29083]
[1735888570762,3.49862,3441.1,3440.9,14.45627348]
[1735888570961,3.2078,3441.1,3440.9,14.45627348]
[1735888571963,3.2078,3441.1,3441.0,0.29083]
[1735888572163,3.2078,3441.1,3441.0,5.3113061]
[1735888572572,3.2078,3441.1,3441.0,5.0204761]
[1735888575062,3.2078,3441.1,3441.0,5.3113061]
[1735888576473,3.2078,3441.7,3441.6,0.29078]
[1735888577370,3.2078,3441.7,3441.5,1.132]
[1735888578071,3.2078,3441.7,3441.6,12.16796962]
[1735888579372,3.2078,3441.7,3441.6,5.3112561]
[1735888582267,3.2078,3442.1,3442.0,0.29074]
[1735888582777,3.2078,3442.1,3441.8,2.30818359]
[1735888582973,3.2078,3442.1,3442.0,0.29074]
[1735888583581,3.2078,3442.1,3442.0,5.3112161]
[1735888585778,3.58419483,3442.6,3442.0,5.0204761]
[1735888585975,3.58419483,3442.6,3442.5,0.2907]
[1735888585976,3.2078,3442.6,3442.5,0.2907]
[1735888586574,3.2078,3442.6,3442.4,1.134]
[1735888586876,3.2078,3442.6,3442.5,0.2907]
[1735888587977,3.2078,3442.6,3442.5,12.15672349]
[1735888589484,3.2078,3442.6,3442.5,5.3111761]
[1735888590782,0.29065,3443.2,3442.7,0.29068]
[1735888590783,3.2078,3442.8,3442.7,0.29068]
[1735888592384,0.29061,3443.6,3443.3,0.29063]
[1735888592580,3.2078,3443.7,3443.3,2.30818359]
[1735888592786,3.2078,3443.7,3443.6,2.30818359]
[1735888592988,3.41291821,3443.9,3443.6,2.30818359]
[1735888593185,3.41291821,3443.9,3443.8,0.29059]
[1735888593481,3.41291821,3443.9,3443.8,1.42459]
[1735888594381,3.2078,3444.3,3443.8,1.134]
[1735888594581,3.2078,3444.3,3444.2,0.29056]
[1735888595176,0.29052,3444.6,3444.0,2.30818359]
[1735888595379,3.2078,3444.4,3444.3,0.29055]
[1735888595682,3.2078,3444.4,3444.2,0.29055]
[1735888596581,3.2078,3444.4,3444.0,2.30818359]
[1735888596782,3.2078,3444.4,3444.3,0.29055]
[1735888600493,3.2078,3444.4,3444.3,2.59873359]
[1735888600693,3.2078,3444.4,3444.0,2.30818359]
[1735888600891,3.2078,3444.4,3444.2,0.29055]
[1735888601086,40.8,3444.3,3444.2,0.29055]
[1735888601397,3.2078,3444.4,3444.3,0.29055]
[1735888601797,3.2078,3444.4,3444.3,2.59873359]
[1735888602890,3.2078,3444.8,3444.5,0.29053]
[1735888603192,3.2078,3444.8,3444.3,2.30818359]
[1735888603497,3.2078,3444.8,3444.7,0.29051]
[1735888603691,3.2078,3445.2,3444.9,0.2905]
[1735888603891,44.0078,3445.2,3444.9,0.2905]
[1735888604292,44.29827,3445.2,3444.8,1.4235]
[1735888604489,44.0078,3445.2,3444.6,2.30818359]
[1735888604691,3.2078,3444.8,3444.7,1.133]
[1735888605086,3.49831,3444.8,3444.7,1.133]
[1735888605296,0.29051,3444.7,3444.4,1.133]
[1735888605602,0.29053,3444.5,3444.4,0.4318]
[1735888606695,2.30818359,3444.6,3443.7,2.30818359]
[1735888606902,3.49838,3443.9,3443.8,1.133]
[1735888607791,3.2078,3443.9,3443.8,1.133]
[1735888608595,3.2078,3443.9,3443.8,0.29059]
[1735888609297,3.2078,3444.3,3443.7,3.44118359]
[1735888609603,3.49835,3444.3,3444.0,0.29057]
[1735888611693,3.2078,3444.3,3443.7,2.30818359]
[1735888611889,0.29059,3443.8,3443.7,1.133]
[1735888612696,3.49838,3443.9,3443.7,1.133]
[1735888613506,3.2078,3443.9,3443.7,1.133]
[1735888613696,0.29059,3443.8,3443.7,1.133]
[1735888614200,0.29059,3443.8,3443.5,1.42361]
[1735888614703,3.49839,3443.9,3443.5,1.42361]
[1735888614901,3.49839,3443.9,3443.5,0.29061]
[1735888615205,3.2078,3443.9,3443.5,0.29061]
[1735888615398,0.29061,3443.7,3443.3,0.29063]
[1735888615605,0.2906,3443.7,3443.4,1.144]
[1735888615805,0.2906,3443.7,3443.3,0.29063]
[1735888616105,0.2906,3443.7,3443.3,1.43463]
[1735888616303,3.2078,3443.9,3443.3,0.29063]
[1735888616503,3.2078,3443.9,3442.4,0.72677]
[1735888616504,3.2078,3443.4,3442.5,5.51598359]
[1735888616704,0.29065,3443.2,3442.9,0.29067]
[1735888616903,3.49846,3443.0,3442.8,1.144]
[1735888617208,3.2078,3443.0,3442.8,1.144]
[1735888617602,3.49846,3443.0,3442.8,1.144]
[1735888617801,3.2078,3443.0,3442.2,5.35014485]
[1735888618004,3.2078,3443.0,3442.3,1.144]
[1735888618205,0.29067,3442.9,3442.6,0.29069]
[1735888618412,0.29067,3442.9,3442.3,1.144]
[1735888618606,3.2078,3442.6,3442.2,5.35014485]
[1735888618808,0.2907,3442.5,3442.2,1.144]
[1735888619003,3.2078,3442.6,3442.2,1.144]
[1735888619612,3.2078,3442.6,3442.3,0.29071]
[1735888620306,3.2078,3442.6,3442.2,1.144]
[1735888620507,3.2078,3442.6,3442.4,0.29071]
[1735888621609,3.2078,3442.6,3442.3,1.43471]
[1735888621806,3.2078,3442.6,3442.4,0.29071]
[1735888622509,3.2078,3442.6,3442.4,0.2907]
[1735888623106,3.2078,3442.6,3442.5,0.2907]
[1735888624206,3.2078,3442.6,3442.5,2.59888359]
[1735888624805,3.2078,3443.1,3442.6,0.29069]
[1735888625007,3.2078,3443.1,3443.0,0.29066]
[1735888626016,0.29063,3443.4,3443.0,0.29066]
[1735888626607,3.2078,3443.5,3442.5,2.30818359]
[1735888626813,0.29064,3443.3,3442.5,2.30818359]
[1735888627008,0.29064,3443.3,3442.9,0.29066]
[1735888627315,0.29066,3443.0,3442.7,0.29068]
[1735888627515,5.51598359,3443.1,3442.4,1.4347]
[1735888627715,3.2078,3442.6,3442.4,1.4347]
[1735888627912,3.2078,3442.6,3442.4,7.12668136]
[1735888629209,3.2078,3442.6,3442.3,1.144]
[1735888629413,3.2078,3442.6,3442.5,0.2907]
[1735888632315,3.2078,3442.6,3442.3,1.144]
[1735888632511,0.29071,3442.4,3442.3,1.144]
[1735888632712,0.29072,3442.3,3442.2,1.144]
[1735888633113,0.29072,3442.3,3441.9,6.83598136]
[1735888633114,0.29074,3442.1,3441.9,6.83598136]
[1735888633313,0.29074,3442.1,3441.9,7.98098136]
[1735888633508,0.29074,3442.1,3441.9,6.83598136]
[1735888634110,3.2078,3442.2,3441.9,6.83598136]
[1735888634313,3.49853,3442.2,3441.9,6.83598136]
[1735888634511,3.49853,3442.2,3441.9,7.12673136]
[1735888634714,3.2078,3442.2,3441.9,6.83598136]
[1735888634917,0.29074,3442.1,3441.8,0.29076]
[1735888635311,0.29074,3442.1,3441.7,1.145]
[1735888635518,0.29074,3442.1,3441.7,1.43576]
[1735888636230,3.49853,3442.2,3441.9,0.29075]
[1735888637318,3.49853,3442.2,3441.8,0.29075]
[1735888638416,3.49853,3442.2,3441.9,0.29075]
[1735888639416,3.2078,3442.2,3442.0,0.29074]
[1735888640821,3.49853,3442.2,3441.9,0.29075]
[1735888641821,3.49853,3442.2,3441.8,0.29076]
[1735888642119,0.29074,3442.1,3441.8,0.29076]
[1735888642321,3.49853,3442.2,3441.8,0.29076]
[1735888642716,3.2078,3442.2,3442.0,0.29074]
[1735888643317,5.51598359,3442.2,3441.7,1.145]
[1735888643518,0.29074,3442.1,3441.7,1.145]
[1735888643718,0.29074,3442.1,3441.8,0.29076]
[1735888643917,5.51598359,3442.2,3441.7,1.145]
[1735888644118,0.29073,3442.1,3441.8,0.29076]
[1735888645321,3.49853,3442.2,3441.9,0.29074]
[1735888645522,3.49853,3442.2,3441.7,1.145]
[1735888645717,3.49853,3442.2,3441.9,0.29075]
[1735888646323,0.29073,3442.1,3441.9,0.29075]
[1735888646524,3.49853,3442.2,3441.9,0.29075]
[1735888648529,3.2078,3442.2,3441.7,1.145]
[1735888648728,3.2078,3442.2,3442.0,0.29074]
[1735888648925,3.49853,3442.2,3442.0,0.29074]
[1735888650123,3.49853,3442.2,3441.9,0.29075]
[1735888656426,3.49853,3442.2,3441.7,1.145]
[1735888656624,3.49853,3442.2,3441.9,0.29075]
[1735888657733,3.2078,3442.2,3442.1,0.29073]
[1735888660126,2.30818359,3442.5,3441.8,4.3488]
[1735888660331,3.2078,3442.6,3442.5,0.2907]
[1735888660631,3.4985,3442.6,3442.3,0.29071]
[1735888660830,3.2078,3442.6,3441.8,1.141]
[1735888661132,3.2078,3442.6,3442.4,0.2907]
[1735888661929,3.2078,3442.6,3442.2,6.83598136]
[1735888662228,3.2078,3442.6,3442.4,0.2907]
[1735888662421,3.2078,3442.6,3442.2,6.83598136]
[1735888662626,3.2078,3442.6,3442.5,0.2907]
[1735888663334,3.2078,3442.6,3442.4,0.2907]
[1735888666130,3.2078,3442.6,3442.3,6.83598136]
[1735888666434,3.2078,3442.6,3442.4,0.2907]
[1735888667439,3.49849,3442.6,3442.4,0.2907]
[1735888667640,3.2078,3442.6,3442.4,0.2907]
[1735888668238,3.2078,3442.5,3442.4,0.2907]
[1735888669538,3.2078,3442.5,3442.4,12.17052494]
[1735888670339,3.2078,3442.5,3442.4,11.87982494]
[1735888670736,3.4985,3442.5,3442.4,11.87982494]
[1735888672231,3.4985,3442.5,3442.4,4.5680309]
[1735888673331,0.29071,3442.4,3442.3,6.83598136]
[1735888673529,3.2078,3442.5,3442.3,6.83598136]
[1735888673938,3.4985,3442.5,3442.3,6.83598136]
[1735888674741,3.4985,3442.5,3442.4,5.0493294]
[1735888678043,3.4985,3442.5,3442.4,11.88531076]
[1735888679346,3.4985,3442.5,3442.4,5.0493294]
[1735888680340,3.2078,3442.5,3442.4,4.57260844]
[1735888680545,3.4985,3442.5,3442.4,4.57260844]
[1735888681345,3.2078,3442.5,3442.4,4.57260844]
[1735888681545,3.2078,3442.5,3442.4,6.83598136]
[1735888682443,3.2078,3442.5,3442.4,5.05091046]
[1735888683140,0.29069,3442.6,3442.4,5.05091046]
[1735888683445,3.2078,3442.5,3442.4,5.05091046]
[1735888683946,3.2078,3442.5,3442.4,5.34162046]
[1735888686148,3.2078,3442.5,3442.4,15.4423394]
[1735888686343,2.55454552,3443.0,3442.6,0.29068]
[1735888686344,3.2078,3442.9,3442.6,0.29068]
[1735888686542,3.2078,3442.9,3442.7,0.29068]
[1735888686740,3.49847,3442.9,3442.7,0.29068]
[1735888686939,3.49847,3442.9,3442.6,0.29069]
[1735888687541,3.49847,3442.9,3442.8,11.90802605]
[1735888690445,44.29847,3442.9,3442.8,4.86183988]
[1735888690642,44.29847,3442.9,3442.8,4.57116988]
[1735888691745,44.29847,3442.9,3442.7,6.85711559]
[1735888691947,44.29847,3442.9,3442.8,0.29067]
[1735888692454,0.29067,3442.8,3442.7,7.14779559]
[1735888692750,3.49847,3442.9,3442.7,7.14779559]
[1735888693856,3.49847,3442.9,3442.7,6.85711559]
[1735888694055,3.49847,3442.9,3442.8,0.29067]
[1735888694656,3.49847,3442.9,3442.8,4.8618043]
[1735888695954,3.49847,3442.9,3442.8,9.91159502]
[1735888696359,3.49847,3442.9,3442.8,9.62092502]
[1735888697560,3.49847,3442.9,3442.8,5.04979072]
[1735888699363,0.29067,3442.8,3442.7,4.57221547]
[1735888699965,2.59885359,3442.8,3442.7,4.57221547]
[1735888702269,2.30818359,3442.8,3442.6,4.57221547]
[1735888702464,0.29068,3442.7,3442.6,4.57221547]
[1735888703372,2.30818359,3442.8,3442.6,5.05278735]
[1735888703669,2.56580966,3442.7,3442.6,5.05278735]
[1735888706071,2.56580966,3442.7,3442.6,11.90990294]
[1735888706663,5.77360966,3442.7,3442.6,11.90990294]
[1735888710166,5.77360966,3442.7,3442.6,5.05278735]
[1735888710367,6.78744115,3442.7,3442.6,5.05278735]
[1735888711467,6.78744115,3442.7,3442.6,11.90990294]
[1735888714270,5.77360966,3442.7,3442.6,11.90990294]
[1735888714470,6.78744115,3442.7,3442.6,5.05278735]
[1735888715275,5.77360966,3442.7,3442.6,5.05278735]
[1735888715470,6.78744115,3442.7,3442.6,5.05278735]
[1735888716174,6.78744115,3442.7,3442.6,11.90990294]
[1735888716366,5.77360966,3442.7,3442.6,11.90990294]
[1735888716570,5.48292966,3442.7,3442.6,12.20059294]
[1735888716773,6.49676115,3442.7,3442.6,12.20059294]
[1735888717174,5.48292966,3442.7,3442.6,12.20059294]
[1735888717369,3.2078,3442.7,3442.6,15.45000627]
[1735888717670,3.49848,3442.7,3442.6,15.15931627]
[1735888717875,4.51231149,3442.7,3442.6,15.15931627]
[1735888718878,4.51231149,3442.7,3442.6,24.3079917]
[1735888719977,6.78744115,3442.7,3442.6,5.05278735]
[1735888721470,48.4345497,3442.7,3442.6,4.57486715]
[1735888721678,47.71139821,3442.7,3442.6,4.57486715]
[1735888721878,48.7252297,3442.7,3442.6,4.57486715]
[1735888722873,47.71139821,3442.7,3442.6,4.57486715]
[1735888723179,45.02163149,3442.7,3442.5,4.57486715]
[1735888723371,0.29069,3442.6,3442.5,4.57486715]
[1735888724777,2.27703252,3442.6,3442.5,11.91514483]
[1735888724978,2.56772252,3442.6,3442.5,11.91514483]
[1735888727078,0.29069,3442.6,3442.5,4.57456028]